[Event "Titled Tuesday Blitz August 16 Early 2022"]
[White "Kambrath, Yannick"]
[Black "Rose, Felix"]
[WhiteFideId "20632525"]
[BlackFideId "5105722"]
[WhiteElo "2236"]
[BlackElo "2039"]
[Result "1-0"]
[Round "01"]
[TimeControl "180+2"]
[Date "2022.08.18"]
[WhiteClock "0:00:00"]
[BlackClock "0:00:00"]

1. d4 {[%clk 0:00:00]}  d5 {[%clk 0:00:00]} 2. Nf3 {[%clk 0:00:00]}  Nf6 {[%clk 0:00:00]} 3. c4 {[%clk 0:00:00]}  e6 {[%clk 0:00:00]} 4. g3 {[%clk 0:00:00]}  dxc4 {[%clk 0:00:00]} 5. Bg2 {[%clk 0:00:00]}  a6 {[%clk 0:00:00]} 6. O-O {[%clk 0:00:00]}  Nc6 {[%clk 0:00:00]} 7. Nc3 {[%clk 0:00:00]}  Rb8 {[%clk 0:00:00]} 8. e4 {[%clk 0:00:00]}  b5 {[%clk 0:00:00]} 9. d5 {[%clk 0:00:00]}  Nb4 {[%clk 0:00:00]} 10. b3 {[%clk 0:00:00]}  cxb3 {[%clk 0:00:00]} 11. Qxb3 {[%clk 0:00:00]}  c5 {[%clk 0:00:00]} 12. dxc6 {[%clk 0:00:00]}  Nxc6 {[%clk 0:00:00]} 13. Bf4 {[%clk 0:00:00]}  Rb7 {[%clk 0:00:00]} 14. Rfd1 {[%clk 0:00:00]}  Rd7 {[%clk 0:00:00]} 15. e5 {[%clk 0:00:00]}  Na5 {[%clk 0:00:00]} 16. Qc2 {[%clk 0:00:00]}  Nd5 {[%clk 0:00:00]} 17. Nxd5 {[%clk 0:00:00]}  Rxd5 {[%clk 0:00:00]} 18. Rxd5 {[%clk 0:00:00]}  exd5 {[%clk 0:00:00]} 19. Bg5 {[%clk 0:00:00]}  Qd7 {[%clk 0:00:00]} 20. e6 {[%clk 0:00:00]}  fxe6 {[%clk 0:00:00]} 21. Ne5 {[%clk 0:00:00]}  Qb7 {[%clk 0:00:00]} 22. Re1 {[%clk 0:00:00]}  Bd6 {[%clk 0:00:00]} 23. Bxd5 {[%clk 0:00:00]}  Qc7 {[%clk 0:00:00]} 24. Nc6 {[%clk 0:00:00]}  O-O {[%clk 0:00:00]} 25. Ne7+ {[%clk 0:00:00]}  Kh8 {[%clk 0:00:00]} 26. Qxc7 {[%clk 0:00:00]}  Bxc7 {[%clk 0:00:00]} 27. Be4 {[%clk 0:00:00]}  Bb7 {[%clk 0:00:00]} 28. Bxb7 {[%clk 0:00:00]}  Nxb7 {[%clk 0:00:00]} 29. Rxe6 {[%clk 0:00:00]}  Bd6 {[%clk 0:00:00]} 30. Nd5 {[%clk 0:00:00]}  h6 {[%clk 0:00:00]} 31. Be3 {[%clk 0:00:00]}  Kg8 {[%clk 0:00:00]} 32. Nc3 {[%clk 0:00:00]}  Kf7 {[%clk 0:00:00]} 33. Re4 {[%clk 0:00:00]}  Rc8 {[%clk 0:00:00]} 34. Nd5 {[%clk 0:00:00]}  Rc2 {[%clk 0:00:00]} 35. a4 {[%clk 0:00:00]}  Nc5 {[%clk 0:00:00]} 36. Bxc5 {[%clk 0:00:00]}  Bxc5 {[%clk 0:00:00]} 37. axb5 {[%clk 0:00:00]}  Rxf2 {[%clk 0:00:00]} 38. Kh1 {[%clk 0:00:00]}  axb5 {[%clk 0:00:00]} 39. Nc7 {[%clk 0:00:00]}  b4 {[%clk 0:00:00]} 40. Ne6 {[%clk 0:00:00]}  Be7 {[%clk 0:00:00]} 41. Kg1 {[%clk 0:00:00]}  Rc2 {[%clk 0:00:00]} 42. Nd4 {[%clk 0:00:00]}  Rc3 {[%clk 0:00:00]} 43. Ne2 {[%clk 0:00:00]}  Rc7 {[%clk 0:00:00]} 44. Rf4+ {[%clk 0:00:00]}  Ke8 {[%clk 0:00:00]} 45. Rf3 {[%clk 0:00:00]}  Rb7 {[%clk 0:00:00]} 46. Rb3 {[%clk 0:00:00]}  Kd7 {[%clk 0:00:00]} 47. Kf1 {[%clk 0:00:00]}  Kc6 {[%clk 0:00:00]} 48. Ke1 {[%clk 0:00:00]}  Kb5 {[%clk 0:00:00]} 49. Kd2 {[%clk 0:00:00]}  Kc4 {[%clk 0:00:00]} 50. Kc2 {[%clk 0:00:00]}  Ra7 {[%clk 0:00:00]} 51. Nf4 {[%clk 0:00:00]}  Ra2+ {[%clk 0:00:00]} 52. Rb2 {[%clk 0:00:00]}  Rxb2+ {[%clk 0:00:00]} 53. Kxb2 {[%clk 0:00:00]}  Bf6+ {[%clk 0:00:00]} 54. Kb1 {[%clk 0:00:00]}  b3 {[%clk 0:00:00]} 55. Nh5 {[%clk 0:00:00]}  Bc3 {[%clk 0:00:00]} 56. Nf4 {[%clk 0:00:00]}  Kd4 {[%clk 0:00:00]} 57. Ne2+ {[%clk 0:00:00]}  Kd3 {[%clk 0:00:00]} 58. Nf4+ {[%clk 0:00:00]}  Ke4 {[%clk 0:00:00]} 59. Kc1 {[%clk 0:00:00]}  Kf3 {[%clk 0:00:00]} 60. Nd5 {[%clk 0:00:00]}  Be5 {[%clk 0:00:00]} 61. Nb6 {[%clk 0:00:00]} 1-0


[Site "https://www.chess.com"]

[Event "Titled Tuesday Blitz August 16 Early 2022"]
[White "Kezin, Roman"]
[Black "Girinath, P.D.S."]
[WhiteFideId "24124621"]
[BlackFideId "5000572"]
[WhiteElo "2551"]
[BlackElo "2369"]
[Result "1-0"]
[Round "01"]
[TimeControl "180+2"]
[Date "2022.08.18"]
[WhiteClock "0:00:00"]
[BlackClock "0:00:00"]

1. b3 {[%clk 0:00:00]}  e6 {[%clk 0:00:00]} 2. Bb2 {[%clk 0:00:00]}  f5 {[%clk 0:00:00]} 3. Nf3 {[%clk 0:00:00]}  Nf6 {[%clk 0:00:00]} 4. g3 {[%clk 0:00:00]}  Be7 {[%clk 0:00:00]} 5. Bg2 {[%clk 0:00:00]}  O-O {[%clk 0:00:00]} 6. O-O {[%clk 0:00:00]}  d6 {[%clk 0:00:00]} 7. d4 {[%clk 0:00:00]}  Ne4 {[%clk 0:00:00]} 8. c4 {[%clk 0:00:00]}  Bf6 {[%clk 0:00:00]} 9. Nbd2 {[%clk 0:00:00]}  Nc6 {[%clk 0:00:00]} 10. e3 {[%clk 0:00:00]}  Kh8 {[%clk 0:00:00]} 11. Qc2 {[%clk 0:00:00]}  Nxd2 {[%clk 0:00:00]} 12. Nxd2 {[%clk 0:00:00]}  e5 {[%clk 0:00:00]} 13. dxe5 {[%clk 0:00:00]}  dxe5 {[%clk 0:00:00]} 14. Rfd1 {[%clk 0:00:00]}  Qe7 {[%clk 0:00:00]} 15. a3 {[%clk 0:00:00]}  a5 {[%clk 0:00:00]} 16. c5 {[%clk 0:00:00]}  Be6 {[%clk 0:00:00]} 17. Rac1 {[%clk 0:00:00]}  Qf7 {[%clk 0:00:00]} 18. Nc4 {[%clk 0:00:00]}  e4 {[%clk 0:00:00]} 19. Bxf6 {[%clk 0:00:00]}  Qxf6 {[%clk 0:00:00]} 20. f4 {[%clk 0:00:00]}  h5 {[%clk 0:00:00]} 21. Bf1 {[%clk 0:00:00]}  Rad8 {[%clk 0:00:00]} 22. Re1 {[%clk 0:00:00]}  Rd5 {[%clk 0:00:00]} 23. Qc3 {[%clk 0:00:00]}  Qxc3 {[%clk 0:00:00]} 24. Rxc3 {[%clk 0:00:00]}  Rxc5 {[%clk 0:00:00]} 25. Rec1 {[%clk 0:00:00]}  Rd8 {[%clk 0:00:00]} 26. R3c2 {[%clk 0:00:00]}  Kh7 {[%clk 0:00:00]} 27. Be2 {[%clk 0:00:00]}  g6 {[%clk 0:00:00]} 28. Kf2 {[%clk 0:00:00]}  Kg7 {[%clk 0:00:00]} 29. h3 {[%clk 0:00:00]}  Kf6 {[%clk 0:00:00]} 30. g4 {[%clk 0:00:00]}  hxg4 {[%clk 0:00:00]} 31. hxg4 {[%clk 0:00:00]}  fxg4 {[%clk 0:00:00]} 32. Nd2 {[%clk 0:00:00]}  Rxc2 {[%clk 0:00:00]} 33. Nxe4+ {[%clk 0:00:00]}  Ke7 {[%clk 0:00:00]} 34. Rxc2 {[%clk 0:00:00]}  Bf5 {[%clk 0:00:00]} 35. Rc4 {[%clk 0:00:00]}  Bxe4 {[%clk 0:00:00]} 36. Rxe4+ {[%clk 0:00:00]}  Kf6 {[%clk 0:00:00]} 37. Bxg4 {[%clk 0:00:00]}  Rd2+ {[%clk 0:00:00]} 38. Kf3 {[%clk 0:00:00]}  Rb2 {[%clk 0:00:00]} 39. Be6 {[%clk 0:00:00]}  Ne7 {[%clk 0:00:00]} 40. Bc4 {[%clk 0:00:00]}  Nf5 {[%clk 0:00:00]} 41. Re6+ {[%clk 0:00:00]}  Kg7 {[%clk 0:00:00]} 42. Re5 {[%clk 0:00:00]}  b6 {[%clk 0:00:00]} 43. e4 {[%clk 0:00:00]}  Nd4+ {[%clk 0:00:00]} 44. Kg4 {[%clk 0:00:00]}  Rg2+ {[%clk 0:00:00]} 45. Kh3 {[%clk 0:00:00]}  Rg1 {[%clk 0:00:00]} 46. Re7+ {[%clk 0:00:00]}  Kh6 {[%clk 0:00:00]} 47. Bg8 {[%clk 0:00:00]}  g5 {[%clk 0:00:00]} 48. fxg5+ {[%clk 0:00:00]}  Rxg5 {[%clk 0:00:00]} 49. Rh7+ {[%clk 0:00:00]}  Kg6 {[%clk 0:00:00]} 50. Rxc7 {[%clk 0:00:00]}  Nf3 {[%clk 0:00:00]} 51. Rc3 {[%clk 0:00:00]}  Ne5 {[%clk 0:00:00]} 52. Be6 {[%clk 0:00:00]}  Kf6 {[%clk 0:00:00]} 53. Bf5 {[%clk 0:00:00]}  Rg1 {[%clk 0:00:00]} 54. Rc8 {[%clk 0:00:00]}  Rb1 {[%clk 0:00:00]} 55. Rc3 {[%clk 0:00:00]}  Kg5 {[%clk 0:00:00]} 56. Kg3 {[%clk 0:00:00]}  Rg1+ {[%clk 0:00:00]} 57. Kf2 {[%clk 0:00:00]}  Ra1 {[%clk 0:00:00]} 58. a4 {[%clk 0:00:00]}  Kf4 {[%clk 0:00:00]} 59. Ke2 {[%clk 0:00:00]}  Ra2+ {[%clk 0:00:00]} 60. Kd1 {[%clk 0:00:00]}  Nf3 {[%clk 0:00:00]} 61. Kc1 {[%clk 0:00:00]}  Nd4 {[%clk 0:00:00]} 62. Kb1 {[%clk 0:00:00]}  Rd2 {[%clk 0:00:00]} 63. Bg6 {[%clk 0:00:00]}  Ne2 {[%clk 0:00:00]} 64. Rc2 {[%clk 0:00:00]}  Rxc2 {[%clk 0:00:00]} 65. Kxc2 {[%clk 0:00:00]}  Ng3 {[%clk 0:00:00]} 66. Kc3 {[%clk 0:00:00]}  Ke5 {[%clk 0:00:00]} 67. Kc4 {[%clk 0:00:00]}  Ne2 {[%clk 0:00:00]} 68. Bh7 {[%clk 0:00:00]}  Nd4 {[%clk 0:00:00]} 69. Bf5 {[%clk 0:00:00]}  Nc6 {[%clk 0:00:00]} 70. Bh7 {[%clk 0:00:00]}  Nd4 {[%clk 0:00:00]} 71. Bg8 {[%clk 0:00:00]}  Kxe4 {[%clk 0:00:00]} 72. Bf7 {[%clk 0:00:00]}  Ke5 {[%clk 0:00:00]} 73. Bg8 {[%clk 0:00:00]}  Ke4 {[%clk 0:00:00]} 74. Bh7+ {[%clk 0:00:00]}  Ke5 {[%clk 0:00:00]} 75. Bb1 {[%clk 0:00:00]}  Ne2 {[%clk 0:00:00]} 76. Bd3 {[%clk 0:00:00]}  Nd4 {[%clk 0:00:00]} 77. Bf1 {[%clk 0:00:00]}  Nf3 {[%clk 0:00:00]} 78. Kb5 {[%clk 0:00:00]}  Nd2 {[%clk 0:00:00]} 79. Bc4 {[%clk 0:00:00]} 1-0


[Site "https://www.chess.com"]

[Event "Titled Tuesday Blitz August 16 Early 2022"]
[White "Khusenkhojaev, Muhammad"]
[Black "Seliverstov, Vladimir"]
[WhiteFideId "14700247"]
[BlackFideId "4192036"]
[WhiteElo "2180"]
[BlackElo "2489"]
[Result "0-1"]
[Round "01"]
[TimeControl "180+1"]
[Date "2022.08.16"]
[WhiteClock "0:01:43"]
[BlackClock "0:02:18"]

1. c4 {[%clk 0:02:33]}  b6 {[%clk 0:02:59]} 2. d4 {[%clk 0:02:34]}  Bb7 {[%clk 0:03:00]} 3. Nc3 {[%clk 0:02:34]}  e6 {[%clk 0:03:01]} 4. Nf3 {[%clk 0:02:33]}  Bb4 {[%clk 0:03:00]} 5. Qc2 {[%clk 0:02:31]}  f5 {[%clk 0:03:00]} 6. g3 {[%clk 0:02:31]}  Nf6 {[%clk 0:02:55]} 7. Bg2 {[%clk 0:02:30]}  O-O {[%clk 0:02:55]} 8. O-O {[%clk 0:02:30]}  Bxc3 {[%clk 0:02:52]} 9. Qxc3 {[%clk 0:02:30]}  Qe8 {[%clk 0:02:50]} 10. Rd1 {[%clk 0:02:30]}  Qh5 {[%clk 0:02:49]} 11. Bf4 {[%clk 0:02:28]}  d6 {[%clk 0:02:49]} 12. Qe3 {[%clk 0:02:16]}  Re8 {[%clk 0:02:45]} 13. h3 {[%clk 0:02:15]}  Nbd7 {[%clk 0:02:40]} 14. Qb3 {[%clk 0:02:14]}  Kh8 {[%clk 0:02:33]} 15. Rac1 {[%clk 0:02:12]}  e5 {[%clk 0:02:30]} 16. dxe5 {[%clk 0:02:11]}  dxe5 {[%clk 0:02:31]} 17. Be3 {[%clk 0:02:05]}  f4 {[%clk 0:02:31]} 18. gxf4 {[%clk 0:02:04]}  exf4 {[%clk 0:02:31]} 19. Bxf4 {[%clk 0:02:04]}  Rxe2 {[%clk 0:02:29]} 20. Qd3 {[%clk 0:01:50]}  Rae8 {[%clk 0:02:25]} 21. Rd2 {[%clk 0:01:47]}  Nc5 {[%clk 0:02:20]} 22. Qc2 {[%clk 0:01:43]}  Bxf3 {[%clk 0:02:18]} 0-1


[Site "https://www.chess.com"]

[Event "Titled Tuesday Blitz August 16 Early 2022"]
[White "Korelskiy, Egor"]
[Black "So, Wesley"]
[WhiteFideId "34329064"]
[BlackFideId "5202213"]
[WhiteElo "2077"]
[BlackElo "2763"]
[Result "0-1"]
[Round "01"]
[TimeControl "180+1"]
[Date "2022.08.16"]
[WhiteClock "0:00:43"]
[BlackClock "0:01:16"]

1. e4 {[%clk 0:02:57]}  c5 {[%clk 0:02:59]} 2. Nf3 {[%clk 0:02:56]}  d6 {[%clk 0:02:59]} 3. d4 {[%clk 0:02:56]}  cxd4 {[%clk 0:03:00]} 4. Nxd4 {[%clk 0:02:56]}  Nf6 {[%clk 0:03:01]} 5. Nc3 {[%clk 0:02:57]}  a6 {[%clk 0:03:01]} 6. h3 {[%clk 0:02:55]}  e5 {[%clk 0:02:56]} 7. Nde2 {[%clk 0:02:54]}  h5 {[%clk 0:02:56]} 8. g3 {[%clk 0:02:54]}  Be7 {[%clk 0:02:52]} 9. Bg2 {[%clk 0:02:54]}  b5 {[%clk 0:02:52]} 10. O-O {[%clk 0:02:52]}  O-O {[%clk 0:02:45]} 11. Be3 {[%clk 0:02:51]}  Be6 {[%clk 0:02:39]} 12. f4 {[%clk 0:02:46]}  Nbd7 {[%clk 0:02:33]} 13. b3 {[%clk 0:02:31]}  Nb6 {[%clk 0:02:11]} 14. f5 {[%clk 0:02:26]}  Bd7 {[%clk 0:02:07]} 15. Qd2 {[%clk 0:02:22]}  Rc8 {[%clk 0:02:05]} 16. Rac1 {[%clk 0:02:18]}  Bc6 {[%clk 0:01:51]} 17. Nd5 {[%clk 0:01:57]}  Bxd5 {[%clk 0:01:50]} 18. exd5 {[%clk 0:01:57]}  Nbd7 {[%clk 0:01:51]} 19. Rfd1 {[%clk 0:01:47]}  Re8 {[%clk 0:01:46]} 20. c4 {[%clk 0:01:46]}  bxc4 {[%clk 0:01:46]} 21. bxc4 {[%clk 0:01:47]}  Nc5 {[%clk 0:01:42]} 22. Kh2 {[%clk 0:01:43]}  Qd7 {[%clk 0:01:40]} 23. Qc2 {[%clk 0:01:33]}  Nh7 {[%clk 0:01:33]} 24. Nc3 {[%clk 0:01:28]}  Bg5 {[%clk 0:01:33]} 25. Bxg5 {[%clk 0:01:16]}  Nxg5 {[%clk 0:01:34]} 26. Rf1 {[%clk 0:01:07]}  Nh7 {[%clk 0:01:33]} 27. Qe2 {[%clk 0:01:02]}  Nf6 {[%clk 0:01:33]} 28. g4 {[%clk 0:01:02]}  hxg4 {[%clk 0:01:27]} 29. hxg4 {[%clk 0:01:03]}  Nh7 {[%clk 0:01:27]} 30. Qe3 {[%clk 0:00:58]}  f6 {[%clk 0:01:27]} 31. Ne4 {[%clk 0:00:50]}  Nxe4 {[%clk 0:01:26]} 32. Bxe4 {[%clk 0:00:47]}  Ng5 {[%clk 0:01:26]} 33. Bg2 {[%clk 0:00:45]}  e4 {[%clk 0:01:17]} 34. c5 {[%clk 0:00:43]}  dxc5 {[%clk 0:01:16]} 35. Rxc5 {[%clk 0:00:43]}  Qd6+ {[%clk 0:01:16]} 0-1


[Site "https://www.chess.com"]

[Event "Titled Tuesday Blitz August 16 Early 2022"]
[White "Korsunsky, Yuri"]
[Black "Harshavardhan G B"]
[WhiteFideId "14102722"]
[BlackFideId "25059009"]
[WhiteElo "2394"]
[BlackElo "1890"]
[Result "0-1"]
[Round "01"]
[TimeControl "180+2"]
[Date "2022.08.18"]
[WhiteClock "0:00:00"]
[BlackClock "0:00:00"]

1. e4 {[%clk 0:00:00]}  c5 {[%clk 0:00:00]} 2. c3 {[%clk 0:00:00]}  Nf6 {[%clk 0:00:00]} 3. e5 {[%clk 0:00:00]}  Nd5 {[%clk 0:00:00]} 4. d4 {[%clk 0:00:00]}  cxd4 {[%clk 0:00:00]} 5. Nf3 {[%clk 0:00:00]}  Nc6 {[%clk 0:00:00]} 6. Bc4 {[%clk 0:00:00]}  Nb6 {[%clk 0:00:00]} 7. Bb3 {[%clk 0:00:00]}  d5 {[%clk 0:00:00]} 8. exd6 {[%clk 0:00:00]}  Qxd6 {[%clk 0:00:00]} 9. O-O {[%clk 0:00:00]}  Bg4 {[%clk 0:00:00]} 10. Bxf7+ {[%clk 0:00:00]}  Kd8 {[%clk 0:00:00]} 11. Bb3 {[%clk 0:00:00]}  e5 {[%clk 0:00:00]} 12. Re1 {[%clk 0:00:00]}  Be7 {[%clk 0:00:00]} 13. h3 {[%clk 0:00:00]}  Bh5 {[%clk 0:00:00]} 14. g4 {[%clk 0:00:00]}  Bg6 {[%clk 0:00:00]} 15. cxd4 {[%clk 0:00:00]}  exd4 {[%clk 0:00:00]} 16. Bg5 {[%clk 0:00:00]}  Bxg5 {[%clk 0:00:00]} 17. Nxg5 {[%clk 0:00:00]}  Kd7 {[%clk 0:00:00]} 18. Nd2 {[%clk 0:00:00]}  Rae8 {[%clk 0:00:00]} 19. Qf3 {[%clk 0:00:00]}  Rhf8 {[%clk 0:00:00]} 20. Qg2 {[%clk 0:00:00]}  Qf4 {[%clk 0:00:00]} 21. Be6+ {[%clk 0:00:00]}  Kd8 {[%clk 0:00:00]} 22. Ngf3 {[%clk 0:00:00]}  Nb4 {[%clk 0:00:00]} 23. Rad1 {[%clk 0:00:00]}  Nd3 {[%clk 0:00:00]} 24. Re2 {[%clk 0:00:00]}  Nxb2 {[%clk 0:00:00]} 25. Rde1 {[%clk 0:00:00]}  Nd3 {[%clk 0:00:00]} 26. Rd1 {[%clk 0:00:00]}  Rf6 {[%clk 0:00:00]} 27. Nc4 {[%clk 0:00:00]}  Rfxe6 {[%clk 0:00:00]} 28. Rxe6 {[%clk 0:00:00]}  Rxe6 {[%clk 0:00:00]} 29. Nxb6 {[%clk 0:00:00]}  axb6 {[%clk 0:00:00]} 30. Nh4 {[%clk 0:00:00]}  Be4 {[%clk 0:00:00]} 31. Qg3 {[%clk 0:00:00]}  Qxg3+ {[%clk 0:00:00]} 32. fxg3 {[%clk 0:00:00]}  Rc6 {[%clk 0:00:00]} 33. Nf5 {[%clk 0:00:00]}  Bxf5 {[%clk 0:00:00]} 34. gxf5 {[%clk 0:00:00]}  Rc1 {[%clk 0:00:00]} 0-1


[Site "https://www.chess.com"]

[Event "Titled Tuesday Blitz August 16 Early 2022"]
[White "Kovacevic, Radmila"]
[Black "Skawinski, Arkadiusz"]
[WhiteFideId "933171"]
[BlackFideId "1126415"]
[WhiteElo "2157"]
[BlackElo "2149"]
[Result "0-1"]
[Round "01"]
[TimeControl "180+2"]
[Date "2022.08.18"]
[WhiteClock "0:00:00"]
[BlackClock "0:00:00"]

1. d4 {[%clk 0:00:00]}  d5 {[%clk 0:00:00]} 2. c4 {[%clk 0:00:00]}  e6 {[%clk 0:00:00]} 3. Nc3 {[%clk 0:00:00]}  c6 {[%clk 0:00:00]} 4. Nf3 {[%clk 0:00:00]}  dxc4 {[%clk 0:00:00]} 5. e4 {[%clk 0:00:00]}  b5 {[%clk 0:00:00]} 6. a3 {[%clk 0:00:00]}  Bb7 {[%clk 0:00:00]} 7. Bf4 {[%clk 0:00:00]}  Nd7 {[%clk 0:00:00]} 8. d5 {[%clk 0:00:00]}  Ngf6 {[%clk 0:00:00]} 9. dxe6 {[%clk 0:00:00]}  fxe6 {[%clk 0:00:00]} 10. e5 {[%clk 0:00:00]}  Nd5 {[%clk 0:00:00]} 11. Nxd5 {[%clk 0:00:00]}  cxd5 {[%clk 0:00:00]} 12. Nd4 {[%clk 0:00:00]}  Nc5 {[%clk 0:00:00]} 13. Nxb5 {[%clk 0:00:00]}  Qa5+ {[%clk 0:00:00]} 14. Nc3 {[%clk 0:00:00]}  Nb3 {[%clk 0:00:00]} 15. Qh5+ {[%clk 0:00:00]}  g6 {[%clk 0:00:00]} 16. Qg4 {[%clk 0:00:00]}  Kf7 {[%clk 0:00:00]} 17. Rd1 {[%clk 0:00:00]}  Bxa3 {[%clk 0:00:00]} 18. Bh6 {[%clk 0:00:00]}  Bxb2 {[%clk 0:00:00]} 19. Qf3+ {[%clk 0:00:00]}  Ke8 {[%clk 0:00:00]} 20. Qf6 {[%clk 0:00:00]}  Bxc3+ {[%clk 0:00:00]} 21. Ke2 {[%clk 0:00:00]}  Kd7 {[%clk 0:00:00]} 22. Qf7+ {[%clk 0:00:00]}  Kc6 {[%clk 0:00:00]} 23. Qxe6+ {[%clk 0:00:00]}  Kb5 {[%clk 0:00:00]} 24. Rxd5+ {[%clk 0:00:00]}  Bxd5 {[%clk 0:00:00]} 25. Qxd5+ {[%clk 0:00:00]}  Kb4 {[%clk 0:00:00]} 26. Qb7+ {[%clk 0:00:00]}  Ka3 {[%clk 0:00:00]} 27. f4 {[%clk 0:00:00]}  Rhd8 {[%clk 0:00:00]} 28. Kf2 {[%clk 0:00:00]}  Qc5+ {[%clk 0:00:00]} 29. Kg3 {[%clk 0:00:00]}  Be1+ {[%clk 0:00:00]} 30. Kh3 {[%clk 0:00:00]}  Qc8+ {[%clk 0:00:00]} 31. Qxc8 {[%clk 0:00:00]}  Raxc8 {[%clk 0:00:00]} 32. g3 {[%clk 0:00:00]}  Bc3 {[%clk 0:00:00]} 33. Bg5 {[%clk 0:00:00]}  Re8 {[%clk 0:00:00]} 34. Bg2 {[%clk 0:00:00]}  Bxe5 {[%clk 0:00:00]} 35. fxe5 {[%clk 0:00:00]}  Rxe5 {[%clk 0:00:00]} 36. Bf4 {[%clk 0:00:00]}  Rb5 {[%clk 0:00:00]} 37. Be4 {[%clk 0:00:00]}  c3 {[%clk 0:00:00]} 38. Rb1 {[%clk 0:00:00]}  c2 {[%clk 0:00:00]} 39. Bc1+ {[%clk 0:00:00]}  Ka4 {[%clk 0:00:00]} 40. Rb2 {[%clk 0:00:00]}  Nxc1 {[%clk 0:00:00]} 41. Bxc2+ {[%clk 0:00:00]}  Ka5 {[%clk 0:00:00]} 42. Rxb5+ {[%clk 0:00:00]}  Kxb5 {[%clk 0:00:00]} 43. Be4 {[%clk 0:00:00]}  Kb4 {[%clk 0:00:00]} 44. Kg4 {[%clk 0:00:00]}  Rc7 {[%clk 0:00:00]} 45. Kg5 {[%clk 0:00:00]}  a6 {[%clk 0:00:00]} 46. Bd5 {[%clk 0:00:00]}  a5 {[%clk 0:00:00]} 47. Kh6 {[%clk 0:00:00]}  Nb3 {[%clk 0:00:00]} 48. Be6 {[%clk 0:00:00]}  a4 {[%clk 0:00:00]} 49. h4 {[%clk 0:00:00]}  a3 {[%clk 0:00:00]} 50. g4 {[%clk 0:00:00]}  a2 {[%clk 0:00:00]} 51. h5 {[%clk 0:00:00]}  gxh5 {[%clk 0:00:00]} 52. g5 {[%clk 0:00:00]}  a1=Q {[%clk 0:00:00]} 53. Bxb3 {[%clk 0:00:00]}  Qg7+ {[%clk 0:00:00]} 54. Kxh5 {[%clk 0:00:00]}  Qg6+ {[%clk 0:00:00]} 55. Kh4 {[%clk 0:00:00]}  Kxb3 {[%clk 0:00:00]} 56. Kg3 {[%clk 0:00:00]}  Qxg5+ {[%clk 0:00:00]} 57. Kf3 {[%clk 0:00:00]}  Rc3+ {[%clk 0:00:00]} 58. Ke4 {[%clk 0:00:00]}  Rc4+ {[%clk 0:00:00]} 59. Kd3 {[%clk 0:00:00]}  Qd5+ {[%clk 0:00:00]} 60. Ke2 {[%clk 0:00:00]}  Re4+ {[%clk 0:00:00]} 61. Kf3 {[%clk 0:00:00]}  Qf5+ {[%clk 0:00:00]} 62. Kg3 {[%clk 0:00:00]}  Rg4+ {[%clk 0:00:00]} 63. Kh2 {[%clk 0:00:00]}  Qh5# {[%clk 0:00:00]} 0-1


[Site "https://www.chess.com"]

[Event "Titled Tuesday Blitz August 16 Early 2022"]
[White "Kuchava, Ana"]
[Black "Adewumi, Tanitoluwa"]
[WhiteFideId "13605348"]
[BlackFideId "30966396"]
[WhiteElo "1955"]
[BlackElo "2302"]
[Result "0-1"]
[Round "01"]
[TimeControl "180+2"]
[Date "2022.08.18"]
[WhiteClock "0:00:00"]
[BlackClock "0:00:00"]

1. d4 {[%clk 0:00:00]}  Nf6 {[%clk 0:00:00]} 2. c4 {[%clk 0:00:00]}  e6 {[%clk 0:00:00]} 3. Nf3 {[%clk 0:00:00]}  b6 {[%clk 0:00:00]} 4. a3 {[%clk 0:00:00]}  Bb7 {[%clk 0:00:00]} 5. Nc3 {[%clk 0:00:00]}  d5 {[%clk 0:00:00]} 6. cxd5 {[%clk 0:00:00]}  Nxd5 {[%clk 0:00:00]} 7. e3 {[%clk 0:00:00]}  g6 {[%clk 0:00:00]} 8. Bd3 {[%clk 0:00:00]}  Bg7 {[%clk 0:00:00]} 9. O-O {[%clk 0:00:00]}  Nxc3 {[%clk 0:00:00]} 10. bxc3 {[%clk 0:00:00]}  O-O {[%clk 0:00:00]} 11. e4 {[%clk 0:00:00]}  c5 {[%clk 0:00:00]} 12. Be3 {[%clk 0:00:00]}  cxd4 {[%clk 0:00:00]} 13. cxd4 {[%clk 0:00:00]}  Nc6 {[%clk 0:00:00]} 14. Bc2 {[%clk 0:00:00]}  Qd6 {[%clk 0:00:00]} 15. Qd3 {[%clk 0:00:00]}  Rfd8 {[%clk 0:00:00]} 16. Rfd1 {[%clk 0:00:00]}  Rac8 {[%clk 0:00:00]} 17. Rac1 {[%clk 0:00:00]}  Na5 {[%clk 0:00:00]} 18. Ba4 {[%clk 0:00:00]}  f5 {[%clk 0:00:00]} 19. exf5 {[%clk 0:00:00]}  exf5 {[%clk 0:00:00]} 20. Ng5 {[%clk 0:00:00]}  h6 {[%clk 0:00:00]} 21. Nh3 {[%clk 0:00:00]}  Be4 {[%clk 0:00:00]} 22. Qb5 {[%clk 0:00:00]}  Qxa3 {[%clk 0:00:00]} 0-1


[Site "https://www.chess.com"]

[Event "Titled Tuesday Blitz August 16 Early 2022"]
[White "Lagno, Kateryna"]
[Black "Ramirez Vido, Robert Yorisan"]
[WhiteFideId "14109336"]
[BlackFideId "3513823"]
[WhiteElo "2522"]
[BlackElo "2090"]
[Result "1-0"]
[Round "01"]
[TimeControl "180+2"]
[Date "2022.08.18"]
[WhiteClock "0:00:00"]
[BlackClock "0:00:00"]

1. e4 {[%clk 0:00:00]}  d6 {[%clk 0:00:00]} 2. d4 {[%clk 0:00:00]}  Nf6 {[%clk 0:00:00]} 3. Nc3 {[%clk 0:00:00]}  g6 {[%clk 0:00:00]} 4. Be3 {[%clk 0:00:00]}  c6 {[%clk 0:00:00]} 5. Nf3 {[%clk 0:00:00]}  b5 {[%clk 0:00:00]} 6. Bd3 {[%clk 0:00:00]}  b4 {[%clk 0:00:00]} 7. Ne2 {[%clk 0:00:00]}  Bg7 {[%clk 0:00:00]} 8. Qd2 {[%clk 0:00:00]}  Qb6 {[%clk 0:00:00]} 9. Bh6 {[%clk 0:00:00]}  Bxh6 {[%clk 0:00:00]} 10. Qxh6 {[%clk 0:00:00]}  c5 {[%clk 0:00:00]} 11. e5 {[%clk 0:00:00]}  dxe5 {[%clk 0:00:00]} 12. dxe5 {[%clk 0:00:00]}  Ng4 {[%clk 0:00:00]} 13. Qg7 {[%clk 0:00:00]}  Rf8 {[%clk 0:00:00]} 14. Be4 {[%clk 0:00:00]}  c4 {[%clk 0:00:00]} 15. O-O {[%clk 0:00:00]}  Bb7 {[%clk 0:00:00]} 16. Bxb7 {[%clk 0:00:00]}  Qxb7 {[%clk 0:00:00]} 17. h3 {[%clk 0:00:00]}  Qe4 {[%clk 0:00:00]} 18. Ng3 {[%clk 0:00:00]}  Qxc2 {[%clk 0:00:00]} 19. hxg4 {[%clk 0:00:00]}  Qxb2 {[%clk 0:00:00]} 20. Ng5 {[%clk 0:00:00]}  Nd7 {[%clk 0:00:00]} 21. Nxh7 {[%clk 0:00:00]}  Qxe5 {[%clk 0:00:00]} 22. Qxe5 {[%clk 0:00:00]}  Nxe5 {[%clk 0:00:00]} 23. Nxf8 {[%clk 0:00:00]}  Kxf8 {[%clk 0:00:00]} 1-0


[Site "https://www.chess.com"]